Cogmind - Beta 13 @@@ ROGUE MODE // 2024.04.04 @ 22:27:34 Player: Luca Result: Self-destructed Performance ------------- Evolutions (1) 500 Regions Visited (2) 400 Robots Destroyed (29) 145 Value Destroyed (733) 733 Prototype IDs (0) 0 Alien Tech Used (0) 0 Bonus (24) 24 TOTAL SCORE: 1802 Bonus ------- High Alert Combat Kills 24 Cogmind --------- Core Integrity 290/400 Matter 155/300 Energy 61/100 System Corruption 0% Temperature Cool (26) Movement Flying (32) Location -9/Materials Parts ------- > --- POWER (1) -------- (None) > --- PROPULSION (3) --- VTOL Module VTOL Module > --- UTILITY (3) ------ Weight Redist. System Visual Processing Unit Sensor Array > --- WEAPON (2) ------- (None) > --- INVENTORY (5) ---- Light Ion Engine Signal Interpreter Hacking Suite Light EM Pulse Cannon Grenade Launcher Peak State ------------ > --- POWER ------------ Light Ion Engine > --- PROPULSION ------- VTOL Module VTOL Module VTOL Module > --- UTILITY ---------- Weight Redist. System Visual Processing Unit Sensor Array > --- WEAPON ----------- Light EM Pulse Cannon Improved Light Cannon > --- INVENTORY -------- Light Ion Engine VTOL Module Core Shielding Hacking Suite Improved Medium Laser [Rating: 17] Favorites ----------- Power Light Ion Engine Engine Light Ion Engine Propulsion VTOL Module Leg Aluminum Leg Wheel Compact Wheel Flight Unit VTOL Module Utility Sensor Array Device Sensor Array Storage Small Storage Unit Processor Visual Processing Unit Weapon Light Assault Rifle Energy Gun EM Pulse Gun Energy Cannon Light EM Pulse Cannon Ballistic Gun Light Assault Rifle Ballistic Cannon Improved Light Cannon Build | -11 -10 -9 ------- Run | Yrd Mat Mat Slots Evolved 2 | . . 2 Power . | . . . Propulsion 1 | . . 1 Utility 1 | . . 1 Weapon . | . . . Parts Attached 46 | 8 28 10 Power 6 | 1 4 1 Engine 6 | 1 4 1 Core . | . . . Reactor . | . . . Propulsion 15 | 4 7 4 Treads . | . . . Leg 4 | 2 2 . Wheel 2 | 2 . . Hover . | . . . Flight 9 | . 5 4 Utility 8 | 1 6 1 Device 3 | . 2 1 Storage 3 | 1 2 . Processor 2 | . 2 . Hackware . | . . . Protection . | . . . Artifact . | . . . Weapon 17 | 2 11 4 Energy Gun 3 | 2 1 . Energy Cannon 6 | . 4 2 Ballistic Gun 6 | . 6 . Ballistic Cannon 2 | . . 2 Launcher . | . . . Special Weapon . | . . . Impact Weapon . | . . . Slashing Weapon . | . . . Piercing Weapon . | . . . Special Melee Weapon . | . . . Unidentified Prototypes . | . . . Parts Lost 7 | . 1 6 Power 1 | . . 1 Propulsion 4 | . 1 3 Utility . | . . . Weapon 2 | . . 2 Highest Loss Streak 2 | . 1 2 To Critical Strikes . | . . . Average Slot Usage (%) 91 | . 96 83 Engine 12 | . 14 10 Leg 2 | . 3 . Flight 23 | . 23 23 Device 14 | . 11 20 Storage 1 | . 1 . Processor 12 | . 13 11 Energy Gun 1 | . 2 . Energy Cannon 4 | . 3 7 Ballistic Gun 13 | . 20 . Ballistic Cannon 3 | . . 9 Naked Turns . | . . . Heaviest Build 15 | 13 15 12 Greatest Support 26 | 26 26 18 Greatest Overweight (x) 4 | . 4 . Average Overweight (x) . | . . . Largest Inventory Capacity 8 | 8 8 5 Average Capacity 5 | 6 5 5 Most Carried 8 | 2 8 5 Average Carried 4 | 1 4 4 Final Capacity 8 | 8 5 5 Final Carried 5 | 2 5 5 Class Distribution -------------------- 70% | Sprinter 23% | Mutant 5% | Scavenger-Sprinter Dominant Class ---------------- Sprinter | -10/Materials Sprinter | -9/Materials Resources | -11 -10 -9 ----------- Run | Yrd Mat Mat Matter Collected 806 | 170 547 89 Remotely . | . . . Salvage Created 890 | . 568 322 Parts 56 | . 41 15 Haulers Intercepted 1 | . 1 . Recyclers Shooed . | . . . Parts Field Recycled . | . . . Retrieved Matter . | . . . Parts Self-Destructed . | . . . Prevented . | . . . Kills | -11 -10 -9 ------- Run | Yrd Mat Mat Combat Hostiles Destroyed 19 | . 11 8 Guns 11 | . 11 . Cannons 8 | . . 8 Classes Destroyed 6 | . 6 . Worker 2 | . 2 . Hauler 1 | . 1 . Operator 3 | . 2 1 Watcher 4 | . 3 1 Swarmer 3 | . 3 . Grunt 16 | . 8 8 Best Kill Streak 3 | . 3 2 Combat Bots Only 3 | . 3 2 Max Kills in Single Turn 1 | . 1 1 Gunslinging . | . . . Exploded . | . . . Melee . | . . . Uniques/NPCs Destroyed . | . . . Combat | -11 -10 -9 -------- Run | Yrd Mat Mat Hostile Shots Fired 120 | . 44 76 Missed 54 | . 15 39 Damage Taken 808 | . 313 495 Core 219 | . 109 110 Absorbed by Shields . | . . . Regen/Repaired (Parts) 10 | . 10 . Core Remaining (%) 78 | 100 56 . Volleys Fired 121 | . 76 45 Largest 2 | . 2 2 Hottest 100 | . 100 95 Shots Fired 187 | . 128 59 Gun 119 | . 119 . Cannon 68 | . 9 59 Launcher . | . . . Special . | . . . Kinetic 158 | . 117 41 Thermal 4 | . 4 . Explosive . | . . . Electromagnetic 25 | . 7 18 Robot Hit Streak 13 | . 13 5 Robot Miss Streak 6 | . 6 3 Penetration Max . | . . . Secondary Targets 1 | . 1 . Max Gunslinging Chain 1 | . 1 . Shots Hit Robots 100 | . 68 32 Core Hits 49 | . 36 13 Critical Kills . | . . . Critical Parts Destroyed 1 | . 1 . Critical Strikes 2 | . 1 1 Destroy 1 | . 1 . Blast 1 | . . 1 Melee Attacks . | . . . Impact . | . . . Slashing . | . . . Piercing . | . . . Sneak Attacks . | . . . Combat Hostiles . | . . . Follow-up Attacks . | . . . Damage Inflicted 1429 | . 685 744 Guns 610 | . 610 . Cannons 819 | . 75 744 Explosions . | . . . Melee . | . . . Ramming . | . . . Kinetic 1038 | . 592 446 Thermal 53 | . 53 . Explosive . | . . . Electromagnetic 338 | . 40 298 Impact . | . . . Slashing . | . . . Piercing . | . . . Highest Corruption . | . . . Average Corruption . | . . . Corruption Purged . | . . . Corruption Blocked . | . . . Overload Shots . | . . . Overflow Damage 40 | . . 40 Projectiles 40 | . . 40 Explosions . | . . . Melee . | . . . Knockbacks 10 | . . 10 Impact . | . . . Kinetic 9 | . . 9 Secondary 1 | . . 1 Self-Inflicted Damage . | . . . Shots . | . . . Rammed . | . . . Targets Rammed . | . . . Kicked . | . . . Crushed . | . . . Highest Temperature 92 | . 74 92 Average Temperature 21 | . 10 36 Received Heat Transfer 444 | . 156 288 Siege Activations . | . . . Robots Corrupted . | . . . Combat Hostiles . | . . . Parts Fried 2 | . . 2 Impact Corruptions . | . . . Robots Melted . | . . . Combat Hostiles . | . . . Parts Melted . | . . . Heat Transferred 111 | . 111 . Parts Sabotaged . | . . . Parts Stolen . | . . . Parts Stripped . | . . . Power Chain Reactions . | . . . Alert | -11 -10 -9 ------- Run | Yrd Mat Mat Peak Influence 470 | . 276 470 Initial 74 | . . 74 Average 184 | . 146 282 Maximum Alert Level 2 | . 1 2 Low Security (%) 56 | 100 70 23 Level 1 37 | . 29 58 Level 2 6 | . . 18 Level 3 . | . . . Level 4 . | . . . Level 5 . | . . . High Security . | . . . Max Security . | . . . Squads Dispatched 4 | . 2 2 Investigation 1 | . 1 . Extermination . | . . . Reinforcement 3 | . 1 2 Assault . | . . . Garrison . | . . . Intercept . | . . . Searches Triggered . | . . . Construction Impeded . | . . . Haulers Reinforced . | . . . Active Scanning Responses . | . . . Cargo Convoy Interrupts . | . . . Stealth | -11 -10 -9 --------- Run | Yrd Mat Mat Distress Signals 2 | . 2 . Communications Jammed . | . . . Distress Signals . | . . . Times Spotted 62 | . 28 34 Peak Tracking Total 7 | . 4 7 Tactical Retreats 15 | . 3 12 Traps | -11 -10 -9 ------- Run | Yrd Mat Mat Traps Triggered 2 | . 2 . Indirectly . | . . . Trap Hack Attempts . | . . . Triggered . | . . . Disarmed . | . . . Reprogrammed . | . . . Reused . | . . . Traps Extracted . | . . . Installed . | . . . Triggered . | . . . Machines | -11 -10 -9 ---------- Run | Yrd Mat Mat Machines Disabled 3 | . . 3 Max in Single Turn 1 | . . 1 Machines Repaired . | . . . Machines Dismantled . | . . . Machines Sabotaged . | . . . Overloaded Fab Kills . | . . . Hacking | -11 -10 -9 --------- Run | Yrd Mat Mat Machines Accessed 9 | . 6 3 Terminals 6 | . 4 2 Fabricators . | . . . Repair Stations 1 | . 1 . Recycling Units 1 | . 1 . Scanalyzers 1 | . . 1 Garrison Access . | . . . Total Hacks 27 | . 17 10 Successful 18 | . 11 7 Failed 9 | . 6 3 Catastrophic . | . . . Database Lockouts . | . . . Manual . | . . . Terminals 19 | . 12 7 Fabricators . | . . . Repair Stations 3 | . 3 . Recycling Units 2 | . 2 . Scanalyzers 3 | . . 3 Garrison Access . | . . . Terminal Hacks 12 | . 8 4 Level Access Points 1 | . 1 . Branch Access Points 2 | . 1 1 Alert Level 2 | . 1 1 Locate Traps 3 | . 1 2 Transport Status 1 | . 1 . Hauler Manifests 1 | . 1 . Zone Layout 2 | . 2 . Fabricator Hacks . | . . . Repair Station Hacks 2 | . 2 . Scan Component 1 | . 1 . Repair 1 | . 1 . Recycling Unit Hacks 1 | . 1 . Retrieve Components 1 | . 1 . Scanalyzer 3 | . . 3 Insert Component 1 | . . 1 Analyze 2 | . . 2 Garrison Access Hacks . | . . . Unauthorized Hacks . | . . . Terminals . | . . . Fabricators . | . . . Repair Stations . | . . . Recycling Units . | . . . Scanalyzers . | . . . Garrison Access . | . . . Data Cores Recovered 1 | . 1 . Used . | . . . Hacking Detections 6 | . 3 3 Full Trace Events . | . . . Feedback Events . | . . . Feedback Blocked . | . . . Robot Schematics Acquired . | . . . Robots Built . | . . . Authchips . | . . . Time . | . . . Total Robot Build Rating . | . . . Part Schematics Acquired 1 | . . 1 Parts Built . | . . . Authchips . | . . . Time . | . . . Total Part Build Rating . | . . . Parts Repaired 1 | . 1 . Time 32 | . 32 . Parts Recycled . | . . . Recycled Matter . | . . . Retrieved Matter . | . . . Retrieved Components 10 | . 10 . Parts Scanalyzed 1 | . . 1 Part Schematics Acquired 1 | . . 1 Parts Damaged . | . . . Bothacking | -11 -10 -9 ------------ Run | Yrd Mat Mat Used RIF Installer . | . . . Robots Hacked . | . . . Non-combat . | . . . Combat . | . . . Robot Hacks Applied . | . . . Relay Couplers Released . | . . . Fabnet Peak Effective % . | . . . Robots Rewired . | . . . Allies Hacked . | . . . Hacks Repelled . | . . . Allies | -11 -10 -9 -------- Run | Yrd Mat Mat Total Allies . | . . . Largest Group . | . . . Highest-Rated Group . | . . . Highest-Rated Ally . | . . . Total Orders . | . . . Ally Attacks . | . . . Total Damage . | . . . Kills . | . . . Allies Corrupted . | . . . Allies Melted . | . . . Intel | -11 -10 -9 ------- Run | Yrd Mat Mat Robot Analysis Total . | . . . Derelict Logs Recovered . | . . . Drone Launches . | . . . Drone Recoveries . | . . . Exploration | -11 -10 -9 ------------- Run | Yrd Mat Mat Turns Passed 1645 | 70 1037 538 Spaces Moved 2097 | 48 1303 746 Core 2 | 1 1 . Treads . | . . . Legs 130 | 40 90 . Wheels 7 | 7 . . Hover . | . . . Flight 1958 | . 1212 746 Fastest Speed 29 | 50 32 29 Average Speed 37 | 115 38 31 Slowest Speed 275 | 120 275 35 Overloaded Moves . | . . . Propulsion Burnouts . | . . . Robots Hopped 16 | . 10 6 Cave-ins Triggered . | . . . Exploration Rate (%) 51 | 4 92 58 Regions Visited 2 Branch Regions . Pre-discovered Areas . | . . . Known Exits Taken 1 | . 1 . Unknown Exits Taken 1 | 1 . . Scrap Searched . | . . . Spaces Dug . | . . . Terrain Destroyed 3 | . . 3 Melee . | . . . Projectile 3 | . . 3 AOE . | . . . Terrain Rammed . | . . . Walls Destroyed . | . . . Machines Disabled . | . . . Actions | -11 -10 -9 --------- Run | Yrd Mat Mat Total 2769 | 59 1725 985 Wait 460 | . 282 178 Move 2064 | 47 1283 734 Hop 15 | . 9 6 Pick Up 23 | 2 15 6 Fast Attach 26 | 8 16 2 Attach 9 | . 3 6 Detach 6 | . 4 2 Swap 11 | . 9 2 Drop 34 | 2 28 4 Fire 121 | . 76 45 Melee . | . . . Ram . | . . . Kick . | . . . Crush . | . . . Escape Stasis . | . . . Rewire . | . . . Trap . | . . . Miscellaneous . | . . . Route ------- -11/Scrapyard -10/Materials (discovered 4 exits: *Mat x3 / *Min) -9/Materials (discovered 2 exits: *Min x2) History --------- Turn | Location | Event 7 | -11/Scrapyard | Discovered new exit (range 15) 71 | -11/Scrapyard | Entered Materials 311 | -10/Materials | Discovered new exit (range 16) 471 | -10/Materials | Discovered new exit (range 16) 498 | -10/Materials | Build established: Sprinter 517 | -10/Materials | Discovered new exit (range 17) 533 | -10/Materials | Identified exit to Mines 675 | -10/Materials | Identified exit to Materials 712 | -10/Materials | Repaired VTOL Module 1108 | -10/Materials | Entered another Materials area 1108 | -9/Materials | Evolved 2 slots: Propulsion x1, Utility x1 1399 | -9/Materials | Identified exit to Mines 1646 | -9/Materials | Self-destructed Last Messages --------------- 01545_ Acquired Signal Interpreter. 01547_ K-01 Serf collects debris. 01551_ T-07 Excavator is excavating. 01553_ R-06 Scavenger collects Visual Processing Unit. 01554_ K-01 Serf collects debris. 01575_ G-34 Mercenary knocked back. 01585_ K-01 Serf cleans the Machine. 01598_ G-34 Mercenary destroyed. 01600_ G-47 Trooper knocked back. 01601_ K-01 Serf collects debris. 01613_ G-34 Mercenary destroyed. 01627_ Acquired VTOL Module. 01629_ M-13 Machinist repairs G-47 Trooper. 01629_ R-06 Scavenger collects Aluminum Leg. 01630_ Lgt. Ion Engine destroyed. 01630_ Critical hit (Burn: +37). 01632_ Acquired 5 matter. 01643_ Critical hit (Burn: +37). 01646_ Imp. Light Cannon destroyed. Map ----- +----------------------------------------------------+ | ?????????????????????????????????????????????????? | | ?????????????????????? ????????????????????????? | | ?????????????????????# ????????????????????????? | | ?????????????????????# #???????????????????????? | | ?????????????????????+ #???????????????????????? | | ?????????????????????# #???????????????????????? | | ?????????????????????# #???????????????????????? | | ?????????????######### #############???????????? | | ?????????????# # ! #???????????? | | ?????????????# # ##??????????? | | ?????????????# T # """ #??????????? | | ?????????????# # ]]] """ #?#####?????? | | ?????????????#[[[ # ]]] """ #?# #??#### | | ?????????????#[[ ^ """ # ] #?# #? | | ?????????????#[[ """ # #?# #?""" | | ?????????????# """ ####+########## # """ | | ?????????????# ? # """ = | | ?????????????+ + | | ?????????????# % # | | ?????????????# ###+#############+### # ] | | ?????????????## # m ## # #? | | ?????????###### # """ g## # #?##### | | ?????????# # # """ ## """ """ # #?????? | | ?????????# + # u"""g ## """ """ # #?????? | | ?????????# # ?# """ ## """ """ # #?????? | | ?????????# # # "@ ## # #?????? | | ???? ????# # # ! ## ! # #?????? | | ????# ???# # ?# g ## [ # #?????? | | ????# ???# # #Y ############ #?????? | | ????# ??# # ########### ## #?????? | | ????# ?##/### % #?????????# ## #?????? | | ????# ### ### ?#?????????# ## #?????? | | ????# %= #?????????# + #?????? | | ????# % #?????????# ###+######?? | | ????# #?????????# # #?? | | ????###### #??######## # """ #?? | | ?????????# #### #######+### """ #?? | | ?????????# # """ #?? | | ########## + #?? | | #"""""""## T # #?? | | #" !"! "## ##+## #### ### # #?? | | #" "## # !#####+##### # "T" #?? | | # # ^ ## # #?? | | > %#! "" #"S ## ##########?? | | =% # T" #""" ## #??????????? | | # # % # ! "" # "" # ####+#####???????? | | ## ###### # # ## # #???????? | | ##+##### """" ## # """ #???????? | | ##### """" ## # """ #???????? | | + """" ## # """ #???????? | +----------------------------------------------------+ Best States ------------- Heat Dissipation 28 Energy Generation 10 Energy Capacity 250 Matter Stores 300 Matter Capacity 300 Sight Range 18 Robot Scan Range 14 Terrain Scan Density 10 Additional Mass Support 6 Evasion (%) 64 Targeting Accuracy 5 Item Schematics ----------------- VTOL Module | -9/Materials | Scanalyzed Robot Schematics ------------------ None Fabricated ------------ Nothing Alien Tech Used ----------------- None Achievements -------------- None Challenges ------------ None Game ------ Seed AblativeHeartRail Manual? 0 Play Time 01:05:24 Cumulative 12.8 hours Start 2024.04.04 @ 21:21:25 End 2024.04.04 @ 22:27:34 Sessions 1 Manual Loads 0 Difficulty Rogue Special Mode None Game No. 5 Rogue 5 Adventurer 0 Explorer 0 Win Type - Total 0 Types 0/0/0/0/0/0/0/0/0 Lore% 5 Gallery% 15 Achievement% 13 Wizard Run 0 Options --------- Layout 1 ASCII 1 Keyboard 0 Movement Mouse Keybinds 0 Fullscreen 2 Font 24/Tallcaps Map View 50x35 Zoom Use 0% Tactical HUD 1 Map Filters NONE Filters NONE Steam 1 RUN: 61a3463c-1f03-4b05-8e63-90fd997cee9f